fUST/lending_fUST_20250430
["ID","MTS","AMOUNT","RATE_DAILY","PERIOD"]
[359379423,1745963455691,-304.758345,0.00027671,7]
[359379424,1745963455701,-304.758345,0.00027671,7]
[359379425,1745963455711,-304.758345,0.00027671,7]
[359379426,1745963455720,-400.0,0.00027671,2]
[359379427,1745963455730,-151.0,0.00027671,7]
[359379428,1745963455741,-151.0,0.00027671,7]
[359379429,1745963455752,-151.0,0.00027671,7]
[359379430,1745963455761,-151.0,0.00027671,7]
[359379431,1745963455771,-400.0,0.00027671,2]
[359379432,1745963455781,-173.494402,0.00027671,7]
[359379433,1745963455791,-173.494402,0.00027671,7]
[359379434,1745963455800,-173.494402,0.00027671,7]
[359379435,1745963455809,-173.494402,0.00027671,7]
[359379436,1745963455818,-164.236879,0.00027671,7]
[359379437,1745963455828,-164.236879,0.00027671,7]
[359379438,1745963455837,-164.236879,0.00027671,7]
[359379439,1745963455847,-314.83806076,0.00027671,2]
[359379440,1745963455857,-164.236879,0.00027671,7]
[359379441,1745963455866,-570.034764,0.00027671,7]
[359379442,1745963455876,-570.034764,0.00027671,7]
[359379443,1745963455886,-570.034764,0.00027671,7]
[359379444,1745963455896,-570.034764,0.00027671,7]
[359379445,1745963455905,-173.494402,0.00027671,7]
[359379446,1745963455915,-173.494402,0.00027671,7]
[359379447,1745963455925,-173.494402,0.00027671,7]
[359379448,1745963455934,-173.494402,0.00027671,7]
[359379449,1745963455944,-164.236879,0.00027671,7]
[359379450,1745963455953,-164.236879,0.00027671,7]
[359379451,1745963455963,-164.236879,0.00027671,7]
[359379452,1745963455973,-570.034764,0.00027671,7]
[359379453,1745963455983,-164.236879,0.00027671,7]
[359379454,1745963455992,-570.034764,0.00027671,7]
[359379455,1745963456001,-570.034764,0.00027671,7]
[359379456,1745963456011,-570.034764,0.00027671,7]
[359379457,1745963456021,-151.0,0.00027671,7]
[359379458,1745963456031,-151.0,0.00027671,7]
[359379459,1745963456041,-151.0,0.00027671,7]
[359379460,1745963456050,-151.0,0.00027671,7]
[359379461,1745963456060,-151.0,0.00027671,7]
[359379462,1745963456069,-151.0,0.00027671,7]
[359379463,1745963456078,-151.0,0.00027671,7]
[359379464,1745963456088,-151.0,0.00027671,7]
[359379465,1745963456097,-151.0,0.00027671,7]
[359379466,1745963456107,-151.0,0.00027671,7]
[359379467,1745963456116,-279.623923,0.00027671,7]
[359379468,1745963456127,-151.0,0.00027671,7]
[359379469,1745963456137,-151.0,0.00027671,7]
[359379470,1745963456147,-151.0,0.00027671,7]
[359379471,1745963456158,-151.0,0.00027671,7]
[359379472,1745963456168,-200.0,0.00027671,2]
[359379473,1745963456178,-400.0,0.00027671,2]
[359379474,1745963456188,-200.0,0.00027671,2]
[359379475,1745963456197,-400.0,0.00027671,2]
[359379476,1745963456207,-200.0,0.00027671,2]
[359379477,1745963456216,-400.0,0.00027671,2]
[359379478,1745963456225,-400.0,0.00027671,2]
[359379479,1745963456235,-400.0,0.00027671,2]
[359379480,1745963456244,-151.0,0.00027671,7]
[359379481,1745963456254,-151.0,0.00027671,7]
[359379482,1745963456263,-400.0,0.00027671,2]
[359379483,1745963456272,-151.0,0.00027671,7]
[359379484,1745963456281,-185.663178,0.00027671,7]
[359379485,1745963456291,-400.0,0.00027671,2]
[359379486,1745963456300,-400.0,0.00027671,2]
[359379487,1745963456309,-191.060945,0.00027671,7]
[359379488,1745963456318,-151.0,0.00027671,7]
[359379489,1745963456328,-151.0,0.00027671,7]
[359379490,1745963456337,-151.0,0.00027671,7]
[359379491,1745963456347,-151.0,0.00027671,7]
[359379492,1745963456356,-400.0,0.00027671,2]
[359379493,1745963456365,-400.0,0.00027671,2]
[359379494,1745963456374,-400.0,0.00027671,2]
[359379495,1745963456384,-500.0,0.00027671,2]
[359379496,1745963456393,-400.0,0.00027671,2]
[359379497,1745963456403,-400.0,0.00027671,2]
[359379498,1745963456413,-400.0,0.00027671,2]
[359379499,1745963456422,-400.0,0.00027671,2]
[359379500,1745963456431,-400.0,0.00027671,2]
[359379501,1745963456441,-400.0,0.00027671,2]
[359379502,1745963456450,-400.0,0.00027671,2]
[359379503,1745963456460,-450.47,0.00027671,2]
[359379504,1745963456469,-400.0,0.00027671,2]
[359379505,1745963456479,-300.0,0.00027671,2]
[359379506,1745963456488,-400.0,0.00027671,2]
[359379507,1745963456497,-400.0,0.00027671,2]
[359379508,1745963456507,-300.0,0.00027671,2]
[359379509,1745963456516,-400.0,0.00027671,2]
[359379510,1745963456526,-204.397078,0.00027671,7]
[359379511,1745963456536,-400.0,0.00027671,2]
[359379512,1745963456546,-500.0,0.00027671,2]
[359379513,1745963456556,-400.0,0.00027671,2]
[359379514,1745963456565,-400.0,0.00027671,2]
[359379515,1745963456577,-400.0,0.00027671,2]
[359379516,1745963456587,-400.0,0.00027671,2]
[359379517,1745963456597,-400.0,0.00027671,2]
[359379518,1745963456608,-400.0,0.00027671,2]
[359379519,1745963456619,-400.0,0.00027671,2]
[359379520,1745963456631,-400.0,0.00027671,2]
[359379521,1745963456640,-400.0,0.00027671,2]
[359379522,1745963456650,-301.744648,0.00027671,7]
[359379523,1745963456660,-301.744648,0.00027671,7]
[359379524,1745963456670,-301.744648,0.00027671,7]
[359379525,1745963456680,-400.0,0.00027671,2]
[359379526,1745963456689,-301.744648,0.00027671,7]
[359379527,1745963456702,-301.744648,0.00027671,7]
[359379528,1745963456711,-301.74465,0.00027671,7]
[359379529,1745963456720,-400.0,0.00027671,2]
[359379530,1745963456730,-400.0,0.00027671,2]
[359379531,1745963456740,-500.0,0.00027671,2]
[359379532,1745963456751,-500.0,0.00027671,2]
[359379533,1745963456760,-500.0,0.00027671,2]
[359379534,1745963456770,-396.508821,0.00027671,7]
[359379535,1745963456780,-500.0,0.00027671,2]
[359379536,1745963456790,-396.508821,0.00027671,7]
[359379537,1745963456799,-318.03548212,0.00027671,2]
[359379538,1745963456809,-396.508821,0.00027671,7]
[359379539,1745963456819,-396.508821,0.00027671,7]
[359379540,1745963456829,-500.0,0.00027671,2]
[359379541,1745963456839,-400.0,0.00027671,2]
[359379542,1745963456848,-396.508821,0.00027671,7]
[359379543,1745963456857,-396.508821,0.00027671,7]
[359379544,1745963456867,-396.508821,0.00027671,7]
[359379545,1745963456876,-400.0,0.00027671,2]
[359379546,1745963456886,-396.508818,0.00027671,7]
[359379547,1745963456896,-400.0,0.00027671,2]
[359379548,1745963456905,-500.0,0.00027671,2]
[359379549,1745963456915,-248.48399133,0.00027671,2]
[359379550,1745963456924,-500.0,0.00027671,2]
[359379551,1745963456933,-500.0,0.00027671,2]
[359379552,1745963456944,-627.547889,0.00027671,7]
[359379553,1745963456954,-627.547889,0.00027671,7]
[359379554,1745963456964,-627.547889,0.00027671,7]
[359379555,1745963456973,-627.547889,0.00027671,7]
[359379556,1745963456983,-627.547889,0.00027671,7]
[359379557,1745963456993,-627.547881,0.00027671,7]
[359379558,1745963457002,-400.0,0.00027671,2]
[359379559,1745963457012,-526.9,0.00027671,2]
[359379560,1745963457022,-400.0,0.00027671,2]
[359379561,1745963457031,-565.51,0.00027671,2]
[359379562,1745963457041,-500.0,0.00027671,2]
[359379563,1745963457051,-694.89,0.00027671,2]
[359379564,1745963457060,-400.0,0.00027671,2]
[359379565,1745963457068,-400.0,0.00027671,2]
[359379566,1745963457077,-400.0,0.00027671,2]
[359379567,1745963457085,-400.0,0.00027671,2]
[359379568,1745963457094,-1100.283541,0.00027671,7]
[359379569,1745963457103,-1100.283541,0.00027671,7]
[359379570,1745963457112,-1100.283541,0.00027671,7]
[359379571,1745963457121,-400.0,0.00027671,2]
[359379572,1745963457131,-1100.283541,0.00027671,7]
[359379573,1745963457141,-1100.283541,0.00027671,7]
[359379574,1745963457151,-400.0,0.00027671,2]
[359379575,1745963457161,-1100.283534,0.00027671,7]
[359379576,1745963457171,-1806.84,0.00027671,2]
[359379577,1745963457180,-1324.525088,0.00027671,2]
[359379578,1745963457191,-1324.525088,0.00027671,2]
[359379579,1745963457200,-1324.525088,0.00027671,2]
[359379580,1745963457212,-1324.52508564,0.00027671,2]
[359379581,1745963457223,-400.0,0.00027671,2]
[359379582,1745963457233,-400.0,0.00027671,2]
[359379583,1745963457243,-400.0,0.00027671,2]
[359379584,1745963457253,-227.137775,0.00027671,7]
[359379585,1745963457263,-227.137775,0.00027671,7]
[359379586,1745963457273,-227.137775,0.00027671,7]
[359379587,1745963457283,-227.137779,0.00027671,7]
[359379588,1745963457292,-400.0,0.00027671,2]
[359379589,1745963457302,-523.062648,0.00027671,7]
[359379590,1745963457311,-523.062648,0.00027671,7]
[359379591,1745963457321,-400.0,0.00027671,2]
[359379592,1745963457330,-523.062648,0.00027671,7]
[359379593,1745963457340,-523.062649,0.00027671,7]
[359379594,1745963457349,-154.33013654,0.00027671,2]
[359379595,1745963457359,-400.0,0.00027671,2]
[359379596,1745963457369,-400.0,0.00027671,2]
[359379597,1745963457379,-400.0,0.00027671,2]
[359379598,1745963457388,-754.55,0.00027671,2]
[359379599,1745963457398,-400.0,0.00027671,2]
[359379600,1745963457407,-400.0,0.00027671,2]
[359379601,1745963457518,-400.0,0.00027671,2]
[359379602,1745963457528,-400.0,0.00027671,2]
[359379603,1745963457538,-400.0,0.00027671,2]
[359379604,1745963457549,-1032.65,0.00027671,2]
[359379605,1745963457560,-400.0,0.00027671,2]
[359379606,1745963457569,-400.0,0.00027671,2]
[359379607,1745963457579,-400.0,0.00027671,2]
[359379608,1745963457589,-200.0,0.00027671,2]
[359379609,1745963457599,-400.0,0.00027671,2]
[359379610,1745963457610,-400.0,0.00027671,2]
[359379611,1745963457620,-400.0,0.00027671,2]
[359379612,1745963457630,-421.19,0.00027671,2]
[359379613,1745963457640,-400.0,0.00027671,2]
[359379614,1745963457650,-400.0,0.00027671,2]
[359379615,1745963457660,-170.558248,0.00027671,7]
[359379616,1745963457669,-170.558248,0.00027671,7]
[359379617,1745963457678,-400.0,0.00027671,2]
[359379618,1745963457688,-1130.12,0.00027671,2]
[359379619,1745963457702,-500.0,0.00027671,2]
[359379620,1745963457712,-170.558248,0.00027671,7]
[359379621,1745963457721,-170.558243,0.00027671,7]
[359379622,1745963457730,-1000.0,0.00027671,2]
[359379623,1745963457739,-470.03,0.00027671,2]
[359379624,1745963457748,-1060.59,0.00027671,2]
[359379625,1745963457758,-400.0,0.00027671,2]
[359379626,1745963457769,-200.0,0.00027671,2]
[359379627,1745963457779,-200.0,0.00027671,2]
[359379628,1745963457788,-400.0,0.00027671,2]
[359379629,1745963457797,-400.0,0.00027671,2]
[359379630,1745963457807,-400.0,0.00027671,2]
[359379631,1745963457816,-437.797287,0.00027671,7]
[359379632,1745963457826,-437.797287,0.00027671,7]
[359379633,1745963457835,-508.56,0.00027671,2]
[359379634,1745963457844,-437.797287,0.00027671,7]
[359379635,1745963457854,-437.797279,0.00027671,7]
[359379636,1745963457865,-400.0,0.00027671,2]
[359379637,1745963457874,-400.0,0.00027671,2]
[359379638,1745963457884,-400.0,0.00027671,2]
[359379639,1745963457894,-400.0,0.00027671,2]
[359379640,1745963457903,-400.0,0.00027671,2]
[359379641,1745963457913,-400.0,0.00027671,2]
[359379642,1745963457923,-400.0,0.00027671,2]
[359379643,1745963457932,-500.0,0.00027671,2]
[359379644,1745963457942,-151.0,0.00027671,7]
[359379645,1745963457951,-151.0,0.00027671,7]
[359379646,1745963457961,-400.0,0.00027671,2]
[359379647,1745963457971,-400.0,0.00027671,2]
[359379648,1745963457981,-400.0,0.00027671,2]
[359379649,1745963457991,-400.0,0.00027671,2]
[359379650,1745963458000,-227.79,0.00027671,2]
[359379651,1745963458010,-400.0,0.00027671,2]
[359379652,1745963458020,-400.0,0.00027671,2]
[359379653,1745963458029,-400.0,0.00027671,2]
[359379654,1745963458039,-540.37,0.00027671,2]
[359379655,1745963458049,-478.8,0.00027671,2]
[359379656,1745963458058,-590.25,0.00027671,2]
[359379657,1745963458068,-400.0,0.00027671,2]
[359379658,1745963458078,-500.0,0.00027671,2]
[359379659,1745963458087,-828.96,0.00027671,2]
[359379660,1745963458097,-874.64,0.00027671,2]
[359379661,1745963458107,-165.511254,0.00027671,2]
[359379662,1745963458116,-165.511254,0.00027671,2]
[359379663,1745963458126,-482.15344201,0.00027671,2]
[359379664,1745963458135,-191.80303054,0.00027671,2]
[359379665,1745963458145,-400.0,0.00027671,2]
[359379666,1745963458154,-165.511254,0.00027671,2]
[359379667,1745963458163,-165.511246,0.00027671,2]
[359379668,1745963458172,-500.0,0.00027671,2]
[359379669,1745963458181,-400.0,0.00027671,2]
[359379670,1745963458191,-400.0,0.00027671,2]
[359379671,1745963458200,-717.34,0.00027671,2]
[359379672,1745963458209,-400.0,0.00027671,2]
[359379673,1745963458219,-383.56348605,0.00027671,2]
[359379674,1745963458228,-1147.08,0.00027671,2]
[359379675,1745963458237,-400.0,0.00027671,2]
[359379676,1745963458246,-400.0,0.00027671,2]
[359379677,1745963458256,-400.0,0.00027671,2]
[359379678,1745963458266,-1240.3,0.00027671,2]
[359379679,1745963458276,-400.0,0.00027671,2]
[359379680,1745963458286,-400.0,0.00027671,2]
[359379681,1745963458295,-498.45,0.00027671,2]
[359379682,1745963458304,-400.0,0.00027671,2]
[359379683,1745963458313,-1289.0,0.00027671,2]
[359379684,1745963458322,-282.39028027,0.00027671,2]
[359379685,1745963458331,-400.0,0.00027671,2]
[359379686,1745963458340,-400.0,0.00027671,2]
[359379687,1745963458350,-400.0,0.00027671,2]
[359379688,1745963458359,-400.0,0.00027671,2]
[359379689,1745963458368,-400.0,0.00027671,2]
[359379690,1745963458377,-2173.63,0.00027671,2]
[359379691,1745963458387,-400.0,0.00027671,2]
[359379692,1745963458396,-1747.53,0.00027671,2]
[359379693,1745963458405,-400.0,0.00027671,2]
[359379694,1745963458415,-400.0,0.00027671,2]
[359379695,1745963458424,-200.0,0.00027671,2]
[359379696,1745963458435,-536.45,0.00027671,2]
[359379697,1745963458444,-400.0,0.00027671,2]
[359379698,1745963458454,-400.0,0.00027671,2]
[359379699,1745963458465,-1015.87,0.00027671,2]
[359379700,1745963458474,-685.17,0.00027671,2]
[359379701,1745963458486,-500.0,0.00027671,2]
[359379702,1745963458497,-3574.27,0.00027671,2]
[359379703,1745963458507,-400.0,0.00027671,2]
[359379704,1745963458518,-400.0,0.00027671,2]
[359379705,1745963458528,-1104.11,0.00027671,2]
[359379706,1745963458538,-400.0,0.00027671,2]
[359379707,1745963458548,-400.0,0.00027671,2]
[359379708,1745963458558,-455.14,0.00027671,2]
[359379709,1745963458567,-400.0,0.00027671,2]
[359379710,1745963458578,-400.67,0.00027671,2]
[359379711,1745963458587,-400.0,0.00027671,2]
[359379712,1745963458596,-400.0,0.00027671,2]
[359379713,1745963458606,-400.0,0.00027671,2]
[359379714,1745963458616,-400.0,0.00027671,2]
[359379715,1745963458626,-400.0,0.00027671,2]
[359379716,1745963458636,-400.0,0.00027671,2]
[359379717,1745963458645,-1381.5,0.00027671,2]
[359379718,1745963458655,-506.07,0.00027671,2]
[359379719,1745963458664,-400.0,0.00027671,2]
[359379720,1745963458674,-400.0,0.00027671,2]
[359379721,1745963458683,-691.09,0.00027671,2]
[359379722,1745963458698,-400.0,0.00027671,2]
[359379723,1745963458708,-674.95,0.00027671,2]
[359379724,1745963458718,-400.0,0.00027671,2]
[359379725,1745963458727,-400.0,0.00027671,2]
[359379726,1745963458738,-400.0,0.00027671,2]
[359379727,1745963458748,-1063.37,0.00027671,2]
[359379728,1745963458759,-400.0,0.00027671,2]
[359379729,1745963458769,-692.75,0.00027671,2]
[359379730,1745963458779,-400.0,0.00027671,2]
[359379731,1745963458789,-417.14,0.00027671,2]
[359379732,1745963458800,-2987.08,0.00027671,2]
[359379733,1745963458809,-400.0,0.00027671,2]
[359379734,1745963458819,-1082.68,0.00027671,2]
[359379735,1745963458829,-400.0,0.00027671,2]
[359379736,1745963458841,-400.0,0.00027671,2]
[359379737,1745963458851,-400.0,0.00027671,2]
[359379738,1745963458861,-400.0,0.00027671,2]
[359379739,1745963458871,-400.0,0.00027671,2]
[359379740,1745963458881,-1255.79,0.00027671,2]
[359379741,1745963458890,-151.0,0.00027671,7]
[359379742,1745963458900,-400.0,0.00027671,2]
[359379743,1745963458911,-1192.77,0.00027671,2]
[359379744,1745963458920,-151.0,0.00027671,7]
[359379745,1745963458931,-1839.52,0.00027671,2]
[359379746,1745963458941,-400.0,0.00027671,2]
[359379747,1745963458951,-969.86,0.00027671,2]
[359379748,1745963458961,-839.62,0.00027671,2]
[359379749,1745963458971,-561.55,0.00027671,2]
[359379750,1745963458981,-412.7,0.00027671,2]
[359379751,1745963458990,-900.23,0.00027671,2]
[359379752,1745963459000,-1422.83,0.00027671,2]
[359379753,1745963459010,-400.0,0.00027671,2]
[359379754,1745963459020,-400.0,0.00027671,2]
[359379755,1745963459030,-2607.24,0.00027671,2]
[359379756,1745963459040,-536.31,0.00027671,2]
[359379757,1745963459049,-927.42,0.00027671,2]
[359379758,1745963459059,-546.82,0.00027671,2]
[359379759,1745963459069,-400.0,0.00027671,2]
[359379760,1745963459078,-661.04,0.00027671,2]
[359379761,1745963459088,-400.0,0.00027671,2]
[359379762,1745963459099,-400.0,0.00027671,2]
[359379763,1745963459109,-749.97,0.00027671,2]
[359379764,1745963459119,-752.7,0.00027671,2]
[359379765,1745963459130,-400.0,0.00027671,2]
[359379766,1745963459140,-400.0,0.00027671,2]
[359379767,1745963459151,-890.66,0.00027671,2]
[359379768,1745963459160,-400.0,0.00027671,2]
[359379769,1745963459170,-400.0,0.00027671,2]
[359379770,1745963459180,-400.0,0.00027671,2]
[359379771,1745963459190,-1785.43,0.00027671,2]
[359379772,1745963459199,-400.0,0.00027671,2]
[359379773,1745963459209,-151.0,0.00027671,7]
[359379774,1745963459218,-151.0,0.00027671,7]
[359379775,1745963459228,-400.0,0.00027671,2]
[359379776,1745963459237,-2165.34,0.00027671,2]
[359379777,1745963459247,-288.671141,0.00027671,7]
[359379778,1745963459257,-300.0,0.00027671,2]
[359379779,1745963459266,-628.17,0.00027671,2]
[359379780,1745963459275,-300.0,0.00027671,2]
[359379781,1745963459284,-2960.09,0.00027671,2]
[359379782,1745963459294,-400.0,0.00027671,2]
[359379783,1745963459303,-400.0,0.00027671,2]
[359379784,1745963459312,-400.0,0.00027671,2]
[359379785,1745963459321,-400.0,0.00027671,2]
[359379786,1745963459330,-1143.87,0.00027671,2]
[359379787,1745963459339,-400.0,0.00027671,2]
[359379788,1745963459349,-2068.51,0.00027671,2]
[359379789,1745963459358,-400.0,0.00027671,2]
[359379790,1745963459367,-421.87858538,0.00027671,2]
[359379791,1745963459377,-400.0,0.00027671,2]
[359379792,1745963459385,-408.81,0.00027671,2]
[359379793,1745963459394,-1156.16,0.00027671,2]
[359379794,1745963459498,-400.0,0.00027671,2]
[359379795,1745963459508,-833.23,0.00027671,2]
[359379796,1745963459517,-400.0,0.00027671,2]
[359379797,1745963459527,-1150.3,0.00027671,2]
[359379798,1745963459536,-348.190547,0.00027671,7]
[359379799,1745963459546,-348.190547,0.00027671,7]
[359379800,1745963459565,-2165.24,0.00027671,2]
[359379801,1745963459578,-685.864806,0.00027671,7]
[359379802,1745963459591,-348.190547,0.00027671,7]
[359379803,1745963459602,-348.190553,0.00027671,7]
[359379804,1745963459614,-455.09118,0.00027671,7]
[359379805,1745963459625,-1083.07,0.00027671,2]
[359379806,1745963459636,-685.864814,0.00027671,7]
[359379807,1745963459647,-234.775697,0.00027671,7]
[359379808,1745963459658,-234.775697,0.00027671,7]
[359379809,1745963459668,-455.091186,0.00027671,7]
[359379810,1745963459679,-400.0,0.00027671,2]
[359379811,1745963459689,-234.775697,0.00027671,7]
[359379812,1745963459703,-2495.98,0.00027671,2]
[359379813,1745963459714,-234.775694,0.00027671,7]
[359379814,1745963459724,-400.0,0.00027671,2]
[359379815,1745963459734,-400.0,0.00027671,2]
[359379816,1745963459745,-400.0,0.00027671,2]
[359379817,1745963459756,-465.53,0.00027671,2]
[359379818,1745963459767,-400.0,0.00027671,2]
[359379819,1745963459777,-1352.29,0.00027671,2]
[359379820,1745963459787,-691.92,0.00027671,2]
[359379821,1745963459797,-400.0,0.00027671,2]
[359379822,1745963459807,-400.0,0.00027671,2]
[359379823,1745963459818,-400.0,0.00027671,2]
[359379824,1745963459828,-850.97,0.00027671,2]
[359379825,1745963459838,-400.0,0.00027671,2]
[359379826,1745963459848,-400.0,0.00027671,2]
[359379827,1745963459858,-1278.18,0.00027671,2]
[359379828,1745963459868,-400.0,0.00027671,2]
[359379829,1745963459879,-426.75,0.00027671,2]
[359379830,1745963459890,-400.0,0.00027671,2]
[359379831,1745963459900,-301.16801424,0.00027671,2]
[359379832,1745963459910,-300.0,0.00027671,2]
[359379833,1745963459920,-500.0,0.00027671,2]
[359379834,1745963459930,-1359.29,0.00027671,2]
[359379835,1745963459940,-884.28,0.00027671,2]
[359379836,1745963459950,-1485.92,0.00027671,2]
[359379837,1745963459960,-300.0,0.00027671,2]
[359379838,1745963459970,-400.0,0.00027671,2]
[359379839,1745963459980,-300.0,0.00027671,2]
[359379840,1745963459990,-500.0,0.00027671,2]
[359379841,1745963460000,-219.3542182,0.00027671,2]
[359379842,1745963460010,-400.0,0.00027671,2]
[359379843,1745963460020,-544.27,0.00027671,2]
[359379844,1745963460031,-531.06,0.00027671,2]
[359379845,1745963460042,-5515.01,0.00027671,2]
[359379846,1745963460053,-400.0,0.00027671,2]
[359379847,1745963460064,-306.87635594,0.00027671,2]
[359379848,1745963460075,-2623.4,0.00027671,2]
[359379849,1745963460086,-500.0,0.00027671,2]
[359379850,1745963460096,-445.94625964,0.00027671,2]
[359379851,1745963460106,-736.07,0.00027671,2]
[359379852,1745963460116,-268.33081743,0.00027673,5]
[359379853,1745963460127,-500.0,0.00027673,5]
[359379854,1745963460137,-500.0,0.00027673,5]
[359379855,1745963460146,-500.0,0.00027673,5]
[359379856,1745963460156,-197.31099372,0.00027673,5]
[359379857,1745963460166,-500.0,0.00027673,5]
[359379858,1745963460180,-500.0,0.00027673,5]
[359379859,1745963460191,-501.44327279,0.00027673,5]
[359379860,1745963460201,-500.57949996,0.00027673,5]
[359379861,1745963460211,-500.0,0.00027673,5]
[359379862,1745963460221,-500.0,0.00027673,5]
[359379863,1745963460231,-500.54829565,0.00027673,5]
[359379864,1745963460242,-500.0,0.00027673,5]
[359379865,1745963460252,-564.91823638,0.00027673,5]
[359379866,1745963460262,-500.0,0.00027673,5]
[359379867,1745963460272,-500.90666951,0.00027673,5]
[359379868,1745963460282,-501.13609394,0.00027673,5]
[359379869,1745963460292,-500.38364638,0.00027673,5]
[359379870,1745963460302,-500.0,0.00027673,5]
[359379871,1745963460312,-629.0162293,0.00027673,5]
[359379872,1745963460322,-500.0,0.00027673,5]
[359379873,1745963460332,-562.26843574,0.00027673,5]
[359379874,1745963460342,-461.92712851,0.00027673,5]
[359379875,1745963460351,-500.0,0.00027673,5]
[359379876,1745963460361,-500.0,0.00027673,5]
[359379877,1745963460370,-500.0,0.00027673,5]
[359379878,1745963460380,-151.0,0.000277,14]
[359379879,1745963460391,-151.0,0.000277,13]
[359379880,1745963460401,-151.0,0.000277,17]
[359379881,1745963460411,-151.0,0.000277,19]
[359379882,1745963460422,-324.79440273,0.0002776,5]
[359379883,1745963460432,-151.0,0.000278,18]
[359379884,1745963460443,-151.0,0.000278,13]
[359379885,1745963460453,-151.0,0.000278,10]
[359379886,1745963460464,-151.0,0.000278,11]
[359379887,1745963460475,-151.0,0.000278,17]
[359379888,1745963460485,-207.4,0.00027809,2]
[359379889,1745963460495,-173.494402,0.00027863,7]
[359379890,1745963460505,-164.236879,0.00027863,7]
[359379891,1745963460515,-570.034764,0.00027863,7]
[359379892,1745963460526,-173.494408,0.00027863,7]
[359379893,1745963460536,-164.236874,0.00027863,7]
[359379894,1745963460546,-570.034755,0.00027863,7]
[359379895,1745963460556,-151.0,0.00027863,7]
[359379896,1745963460566,-151.0,0.00027863,7]
[359379897,1745963460576,-151.0,0.00027863,7]
[359379898,1745963460586,-151.0,0.00027864,7]
[359379899,1745963460597,-151.0,0.00027864,7]
[359379900,1745963460608,-151.0,0.00027864,7]
[359379901,1745963460619,-151.0,0.00027864,7]
[359379902,1745963460633,-304.758345,0.00027865,7]
[359379903,1745963460644,-304.758345,0.00027865,7]
[359379904,1745963460653,-151.0,0.00027865,7]
[359379905,1745963460664,-3371.57865437,0.00027866,7]
[359379906,1745963460673,-151.0,0.000279,15]
[359379907,1745963460683,-151.0,0.000279,14]
[359379908,1745963460698,-151.0,0.000279,19]
[359379909,1745963460707,-151.0,0.000279,16]
[359379910,1745963460717,-4482.15664744,0.00027935,2]
[359379911,1745963460727,-837.7555751,0.00027935,2]
[359379912,1745963460737,-160.0,0.00027944,10]
[359379913,1745963460747,-192.203621,0.00027945,7]
[359379914,1745963460759,-211.709985,0.00027945,7]
[359379915,1745963460771,-211.709985,0.00027945,7]
[359379916,1745963460781,-151.0,0.00027945,7]
[359379917,1745963460791,-151.0,0.00027945,7]
[359379918,1745963460801,-151.0,0.00027945,7]
[359379919,1745963460810,-151.0,0.00027945,7]
[359379920,1745963460820,-151.0,0.00027945,7]
[359379921,1745963460829,-151.0,0.00027945,7]
[359379922,1745963460839,-151.0,0.00027945,7]